[Event "European Amateur-ch U1700 2019"]
[Site "Rhodes"]
[Date "2019.04.11"]
[Round "6.4"]
[White "Meremyanina, Kseniya"]
[Black "De Luca, Andrew"]
[Result "1-0"]
[ECO "C44"]
[WhiteElo "1577"]
[BlackElo "1483"]
[Annotator "NA"]
[PlyCount "67"]
[EventDate "2019.04.06"]
[EventType "swiss"]
[EventCountry "GRE"]
[SourceTitle "playchess.com"]
[Source "ChessBase"]
[SourceQuality "1"]
[TimeControl "40/5400+30:1800+30"]

1. e4 {[%emt 0:00:00]} e5 {[%emt 0:00:00]} 2. Nf3 {[%emt 0:00:00]} Nc6 {[%emt 0:00:25]} 3. d4 {[%emt 0:00:03]} exd4 {[%emt 0:01:18]} 4. Bc4 {[%emt 0:00:28]} Bb4+ {[%emt 0:02:03]} 5. c3 {[%emt 0:06:20]} dxc3 {[%emt 0:01:20]} 6. bxc3 {[%emt 0:00:05]} Bc5 {[%emt 0:03:03]} 7. Bxf7+ {[%emt 0:00:32]} Kxf7 {[%emt 0:00:56]} 8. Qd5+ {[%emt 0:00:03]} Ke8 {[%emt 0:01:42]} 9. Qh5+ {[%emt 0:01:55]} g6 {[%emt 0:01:14]} 10. Qxc5 {[%emt 0:00:03]} d6 {[%emt 0:01:06]} 11. Qe3 {[%emt 0:01:15]} Qf6 {[%emt 0:03:17]} 12. Bb2 {[%emt 0:03:29]} Bg4 {[%emt 0:01:41]} 13. Nbd2 {[%emt 0:04:06]} Kd7 {[%emt 0:00:59]} 14. O-O {[%emt 0:00:29]} Re8 {[%emt 0:00:44]} 15. Rab1 {[%emt 0:00:23]} Qf7 {[%emt 0:01:37]} 16. c4 {[%emt 0:02:18]} Nf6 {[%emt 0:00:51]} 17. Ng5 {[%emt 0:01:38]} Qe7 {[%emt 0:01:18]} 18. h3 {[%emt 0:01:44]} Be6 {[%emt 0:01:28]} 19. Nxe6 {[%emt 0:00:22]} Qxe6 {[%emt 0:00:23]} 20. Bxf6 {[%emt 0:00:43]} Qxf6 {[%emt 0:00:19]} 21. Rxb7 {[%emt 0:00:40]} g5 {[%emt 0:00:33]} 22. Qd3 {[%emt 0:06:01]} Re5 {[%emt 0:02:30]} 23. Rb5 {[%emt 0:01:09]} Rxb5 {[%emt 0:03:32]} 24. cxb5 {[%emt 0:00:04]} Ne5 {[%emt 0:00:22]} 25. Qd5 {[%emt 0:01:47]} g4 {[%emt 0:06:28]} 26. hxg4 {[%emt 0:00:19]} Nxg4 {[%emt 0:01:43]} 27. Qc6+ {[%emt 0:00:14]} Ke6 {[%emt 0:01:45]} 28. Qxc7 {[%emt 0:01:05]} Qh6 {[%emt 0:04:26]} 29. Nf3 {[%emt 0:01:07]} Rf8 {[%emt 0:01:34]} 30. Rd1 {[%emt 0:01:06]} Qf4 {[%emt 0:05:20]} 31. g3 {[%emt 0:01:45]} Qxf3 {[%emt 0:03:27]} 32. Rxd6+ {[%emt 0:00:07]} Ke5 {[%emt 0:00:37]} 33. Qc5+ {[%emt 0:00:51]} Kxe4 {[%emt 0:00:23]} 34. Rd4# {[%emt 0:00:05]} 1-0

[Event "European Amateur-ch U1700 2019"]
[Site "Rhodes"]
[Date "2019.04.11"]
[Round "6.5"]
[White "Grishina, Zhanna"]
[Black "Taddia, Davide"]
[Result "0-1"]
[ECO "A45"]
[WhiteElo "1482"]
[BlackElo "1519"]
[Annotator "NA"]
[PlyCount "104"]
[EventDate "2019.04.06"]
[EventType "swiss"]
[EventCountry "GRE"]
[SourceTitle "playchess.com"]
[Source "ChessBase"]
[SourceQuality "1"]
[TimeControl "40/5400+30:1800+30"]

1. d4 {[%emt 0:00:00]} Nf6 {[%emt 0:00:00]} 2. Bf4 {[%emt 0:00:00]} c5 {[%emt 0:01:01]} 3. e3 {[%emt 0:00:20]} cxd4 {[%emt 0:03:41]} 4. exd4 {[%emt 0:00:06]} g6 {[%emt 0:00:42]} 5. Nc3 {[%emt 0:02:19]} Bg7 {[%emt 0:02:44]} 6. Nf3 {[%emt 0:00:20]} d6 {[%emt 0:03:22]} 7. Qd2 {[%emt 0:01:38]} a6 {[%emt 0:04:17]} 8. Be2 {[%emt 0:00:59]} b5 {[%emt 0:01:53]} 9. a3 {[%emt 0:00:51]} Qa5 {[%emt 0:04:19]} 10. b4 {[%emt 0:01:00]} Qc7 {[%emt 0:03:43]} 11. a4 {[%emt 0:01:36]} bxa4 {[%emt 0:05:48]} 12. Nxa4 {[%emt 0:01:44]} Ne4 {[%emt 0:05:01]} 13. Qd3 {[%emt 0:11:54]} Bf5 {[%emt 0:01:49]} 14. Qc4 {[%emt 0:07:17]} Qd8 {[%emt 0:06:38]} 15. O-O {[%emt 0:28:47]} O-O {[%emt 0:00:41]} 16. Ra3 {[%emt 0:02:25]} Nd7 {[%emt 0:05:37]} 17. d5 {[%emt 0:06:12]} Nb6 {[%emt 0:04:02]} 18. Qa2 {[%emt 0:03:26]} Nxa4 {[%emt 0:00:45]} 19. Bd2 {[%emt 0:09:06]} Nxd2 {[%emt 0:01:32]} 20. Nxd2 {[%emt 0:00:11]} Nc3 {[%emt 0:00:17]} 21. Qc4 {[%emt 0:01:28]} Nxe2+ {[%emt 0:00:31]} 22. Qxe2 {[%emt 0:00:14]} Qc7 {[%emt 0:01:43]} 23. c4 {[%emt 0:00:30]} Rfe8 {[%emt 0:01:32]} 24. Re1 {[%emt 0:05:40]} Bd7 {[%emt 0:02:54]} 25. Nf3 {[%emt 0:05:12]} e6 {[%emt 0:01:51]} 26. dxe6 {[%emt 0:00:25]} Rxe6 {[%emt 0:00:47]} 27. Qa2 {[%emt 0:00:43]} Rxe1+ {[%emt 0:00:43]} 28. Nxe1 {[%emt 0:00:05]} Be6 {[%emt 0:00:28]} 29. Rxa6 {[%emt 0:00:30]} Rxa6 {[%emt 0:00:22]} 30. Qxa6 {[%emt 0:00:06]} Bxc4 {[%emt 0:00:30]} 31. Qa4 {[%emt 0:01:26]} Qb8 {[%emt 0:01:53]} 32. Nc2 {[%emt 0:00:58]} Bb5 {[%emt 0:01:29]} 33. Qa5 {[%emt 0:00:59]} Bd3 {[%emt 0:03:56]} 34. Ne3 {[%emt 0:01:25]} Qc8 {[%emt 0:05:35]} 35. g3 {[%emt 0:02:00]} Qc1+ {[%emt 0:01:20]} 36. Kg2 {[%emt 0:00:06]} Be4+ {[%emt 0:00:23]} 37. Kh3 {[%emt 0:00:15]} Qc8+ {[%emt 0:00:23]} 38. g4 {[%emt 0:00:54]} h5 {[%emt 0:03:51]} 39. Kh4 {[%emt 0:02:16]} Bd4 {[%emt 0:01:02]} 40. gxh5 {[%emt 0:00:00]} Bxe3 {[%emt 0:00:00]} 41. fxe3 {[%emt 0:00:49]} gxh5 {[%emt 0:03:26]} 42. Qg5+ {[%emt 0:00:26]} Bg6 {[%emt 0:00:38]} 43. b5 {[%emt 0:00:31]} Qc4+ {[%emt 0:01:37]} 44. Kg3 {[%emt 0:00:44]} Qc7 {[%emt 0:03:59]} 45. Qd5 {[%emt 0:03:52]} Qc5 {[%emt 0:01:30]} 46. Qb3 {[%emt 0:05:48]} Qg5+ {[%emt 0:01:35]} 47. Kf2 {[%emt 0:03:04]} Qh4+ {[%emt 0:01:31]} 48. Kf1 {[%emt 0:02:15]} Qh3+ {[%emt 0:00:48]} 49. Ke1 {[%emt 0:00:23]} Qxh2 {[%emt 0:02:18]} 50. b6 {[%emt 0:00:22]} Qg1+ {[%emt 0:01:09]} 51. Kd2 {[%emt 0:01:03]} Qg2+ {[%emt 0:01:05]} 52. Kc3 {[%emt 0:00:57]} Be4 {[%emt 0:00:25]} 0-1

[Event "European Amateur-ch U1700 2019"]
[Site "Rhodes"]
[Date "2019.04.11"]
[Round "6.6"]
[White "Pantelic, Slobodan"]
[Black "Cebo, Vladimir"]
[Result "1-0"]
[ECO "D02"]
[WhiteElo "1646"]
[BlackElo "1602"]
[Annotator "NA"]
[PlyCount "77"]
[EventDate "2019.04.06"]
[EventType "swiss"]
[EventCountry "GRE"]
[SourceTitle "playchess.com"]
[Source "ChessBase"]
[SourceQuality "1"]
[TimeControl "40/5400+30:1800+30"]

1. Nf3 {[%emt 0:00:00]} d5 {[%emt 0:00:00]} 2. d4 {[%emt 0:00:00]} c6 {[%emt 0:00:59]} 3. Bf4 {[%emt 0:00:00]} Nd7 {[%emt 0:00:36]} 4. e3 {[%emt 0:00:00]} Ngf6 {[%emt 0:00:58]} 5. h3 {[%emt 0:00:00]} e6 {[%emt 0:04:14]} 6. Be2 {[%emt 0:00:00]} Be7 {[%emt 0:00:51]} 7. O-O {[%emt 0:00:00]} O-O {[%emt 0:00:09]} 8. Nbd2 {[%emt 0:00:07]} c5 {[%emt 0:00:22]} 9. c3 {[%emt 0:00:02]} c4 {[%emt 0:01:37]} 10. Qc2 {[%emt 0:00:14]} Re8 {[%emt 0:01:44]} 11. e4 {[%emt 0:00:02]} Nf8 {[%emt 0:02:40]} 12. e5 {[%emt 0:00:03]} N6d7 {[%emt 0:01:46]} 13. a4 {[%emt 0:00:02]} b6 {[%emt 0:01:31]} 14. b3 {[%emt 0:00:06]} cxb3 {[%emt 0:01:44]} 15. Qxb3 {[%emt 0:00:07]} Bb7 {[%emt 0:01:11]} 16. c4 {[%emt 0:00:09]} dxc4 {[%emt 0:01:19]} 17. Bxc4 {[%emt 0:00:13]} a5 {[%emt 0:03:09]} 18. Bb5 {[%emt 0:00:11]} Ba6 {[%emt 0:00:58]} 19. Rac1 {[%emt 0:00:12]} Bxb5 {[%emt 0:06:19]} 20. Qxb5 {[%emt 0:00:18]} Rc8 {[%emt 0:06:06]} 21. Ne4 {[%emt 0:00:06]} h6 {[%emt 0:02:29]} 22. Nd6 {[%emt 0:00:31]} Bxd6 {[%emt 0:00:56]} 23. exd6 {[%emt 0:00:02]} Qf6 {[%emt 0:19:46]} 24. Rc7 {[%emt 0:00:10]} Rxc7 {[%emt 0:02:32]} 25. Be5 {[%emt 0:00:02]} Qd8 {[%emt 0:03:50]} 26. dxc7 {[%emt 0:00:05]} Qc8 {[%emt 0:00:02]} 27. Bd6 {[%emt 0:00:20]} f6 {[%emt 0:03:04]} 28. Rc1 {[%emt 0:00:03]} Kf7 {[%emt 0:06:42]} 29. Qc6 {[%emt 0:00:14]} g6 {[%emt 0:04:22]} 30. d5 {[%emt 0:00:11]} e5 {[%emt 0:01:32]} 31. Bxf8 {[%emt 0:00:09]} Kxf8 {[%emt 0:02:29]} 32. d6 {[%emt 0:00:28]} Kf7 {[%emt 0:02:16]} 33. Qd5+ {[%emt 0:00:07]} Kf8 {[%emt 0:00:27]} 34. Rc6 {[%emt 0:00:18]} Kg7 {[%emt 0:00:47]} 35. Nd2 {[%emt 0:00:07]} f5 {[%emt 0:03:40]} 36. Nc4 {[%emt 0:00:01]} Nf6 {[%emt 0:11:55]} 37. Qb5 {[%emt 0:00:07]} Nd7 {[%emt 0:00:53]} 38. Nxb6 {[%emt 0:00:05]} Nxb6 {[%emt 0:01:11]} 39. Rxb6 {[%emt 0:00:04]} 1-0

[Event "European Amateur-ch U1700 2019"]
[Site "Rhodes"]
[Date "2019.04.11"]
[Round "6.9"]
[White "Kalpakidis, Daniel Kyriakos"]
[Black "Apostolakis, Ioannis"]
[Result "0-1"]
[WhiteElo "1211"]
[BlackElo "1439"]
[Annotator "NA"]
[PlyCount "23"]
[EventDate "2019.04.06"]
[EventType "swiss"]
[EventCountry "GRE"]
[SourceTitle "playchess.com"]
[Source "ChessBase"]
[SourceQuality "1"]
[TimeControl "40/5400+30:1800+30"]

1. d4 {[%emt 0:00:00]} f5 {[%emt 0:00:03]} 2. e3 {[%emt 0:00:00]} Nf6 {[%emt 0:00:17]} 3. Bd3 {[%emt 0:00:00]} g6 {[%emt 0:00:09]} 4. b3 {[%emt 0:00:00]} Bg7 {[%emt 0:00:10]} 5. Bb2 {[%emt 0:00:14]} b6 {[%emt 0:00:03]} 6. Nf3 {[%emt 0:00:04]} Bb7 {[%emt 0:00:04]} 7. Nbd2 {[%emt 0:00:06]} e6 {[%emt 0:00:24]} 8. O-O {[%emt 0:00:05]} O-O {[%emt 0:00:05]} 9. a3 {[%emt 0:00:10]} d6 {[%emt 0:00:51]} 10. Ng5 {[%emt 0:00:36]} Qe7 {[%emt 0:00:10]} 11. Bc4 {[%emt 0:00:35]} d5 {[%emt 0:00:19]} 12. Bd3 {[%emt 0:00:07]} 0-1

[Event "European Amateur-ch U1700 2019"]
[Site "Rhodes"]
[Date "2019.04.11"]
[Round "6.12"]
[White "Irakleidis, Christos"]
[Black "Rammos, Ilias"]
[Result "0-1"]
[ECO "D02"]
[WhiteElo "1348"]
[BlackElo "1040"]
[Annotator "NA"]
[PlyCount "70"]
[EventDate "2019.04.06"]
[EventType "swiss"]
[EventCountry "GRE"]
[SourceTitle "playchess.com"]
[Source "ChessBase"]
[SourceQuality "1"]
[TimeControl "40/5400+30:1800+30"]

1. d4 {[%emt 0:00:00]} d5 {[%emt 0:00:13]} 2. Nf3 {[%emt 0:00:00]} Nc6 {[%emt 0:01:08]} 3. e3 {[%emt 0:01:27]} Nf6 {[%emt 0:03:38]} 4. Nbd2 {[%emt 0:00:47]} Bd7 {[%emt 0:07:44]} 5. Bd3 {[%emt 0:00:29]} e6 {[%emt 0:01:24]} 6. O-O {[%emt 0:04:50]} Bd6 {[%emt 0:02:29]} 7. b3 {[%emt 0:00:47]} e5 {[%emt 0:01:54]} 8. Bb5 {[%emt 0:12:09]} e4 {[%emt 0:08:13]} 9. Bxc6 {[%emt 0:00:12]} Bxc6 {[%emt 0:00:21]} 10. Ne5 {[%emt 0:04:44]} Bxe5 {[%emt 0:02:27]} 11. dxe5 {[%emt 0:00:08]} Nd7 {[%emt 0:00:39]} 12. Qg4 {[%emt 0:06:16]} Qe7 {[%emt 0:04:16]} 13. Bb2 {[%emt 0:00:08]} O-O-O {[%emt 0:05:54]} 14. f4 {[%emt 0:03:53]} Qc5 {[%emt 0:08:34]} 15. Bd4 {[%emt 0:20:06]} Qe7 {[%emt 0:07:09]} 16. c4 {[%emt 0:11:05]} Kb8 {[%emt 0:04:32]} 17. cxd5 {[%emt 0:04:01]} Bxd5 {[%emt 0:00:17]} 18. Nc4 {[%emt 0:04:59]} Nc5 {[%emt 0:06:34]} 19. Nb2 {[%emt 0:03:38]} Ne6 {[%emt 0:10:32]} 20. Bc3 {[%emt 0:04:39]} h5 {[%emt 0:01:59]} 21. Qe2 {[%emt 0:01:04]} Rh6 {[%emt 0:00:00]} 22. f5 {[%emt 0:04:55]} Ng5 {[%emt 0:01:59]} 23. Rf4 {[%emt 0:02:45]} Rg8 {[%emt 0:05:07]} 24. Rd1 {[%emt 0:03:12]} c6 {[%emt 0:00:13]} 25. Nc4 {[%emt 0:00:21]} h4 {[%emt 0:02:52]} 26. Nd6 {[%emt 0:02:37]} h3 {[%emt 0:01:39]} 27. Qg4 {[%emt 0:01:44]} hxg2 {[%emt 0:00:47]} 28. Kxg2 {[%emt 0:00:25]} f6 {[%emt 0:02:02]} 29. exf6 {[%emt 0:01:46]} gxf6 {[%emt 0:00:17]} 30. Rh1 {[%emt 0:00:09]} Nh3 {[%emt 0:01:20]} 31. Qxg8+ {[%emt 0:00:09]} Bxg8 {[%emt 0:00:01]} 32. Nxe4 {[%emt 0:00:59]} Nxf4+ {[%emt 0:00:16]} 33. Kf3 {[%emt 0:00:24]} Bd5 {[%emt 0:00:35]} 34. Kxf4 {[%emt 0:00:14]} Rh4+ {[%emt 0:00:10]} 35. Kg3 {[%emt 0:00:51]} Qxe4 {[%emt 0:00:06]} 0-1

[Event "European Amateur-ch U1700 2019"]
[Site "Rhodes"]
[Date "2019.04.12"]
[Round "7.1"]
[White "Ruzic, Milos"]
[Black "Snokowski, Marcin"]
[Result "0-1"]
[ECO "B27"]
[WhiteElo "1674"]
[BlackElo "1659"]
[Annotator "NA"]
[PlyCount "72"]
[EventDate "2019.04.06"]
[EventType "swiss"]
[EventCountry "GRE"]
[SourceTitle "playchess.com"]
[Source "ChessBase"]
[SourceQuality "1"]
[TimeControl "40/5400+30:1800+30"]

1. e4 {[%emt 0:00:00]} g6 {[%emt 0:00:00]} 2. d4 {[%emt 0:00:00]} Bg7 {[%emt 0:00:00]} 3. Nf3 {[%emt 0:00:03]} c5 {[%emt 0:00:50]} 4. dxc5 {[%emt 0:00:36]} Qa5+ {[%emt 0:00:10]} 5. c3 {[%emt 0:00:17]} Qxc5 {[%emt 0:00:08]} 6. h3 {[%emt 0:00:42]} d6 {[%emt 0:03:11]} 7. Be3 {[%emt 0:02:27]} Qc7 {[%emt 0:00:10]} 8. Qc2 {[%emt 0:06:03]} Nf6 {[%emt 0:03:23]} 9. Na3 {[%emt 0:00:34]} a6 {[%emt 0:03:27]} 10. Nc4 {[%emt 0:03:20]} Nbd7 {[%emt 0:02:32]} 11. a4 {[%emt 0:04:52]} d5 {[%emt 0:04:38]} 12. exd5 {[%emt 0:08:19]} Nxd5 {[%emt 0:02:05]} 13. Qd2 {[%emt 0:00:49]} Nxe3 {[%emt 0:01:58]} 14. Qxe3 {[%emt 0:00:09]} e6 {[%emt 0:04:14]} 15. Bd3 {[%emt 0:02:24]} O-O {[%emt 0:01:14]} 16. O-O {[%emt 0:01:55]} Rb8 {[%emt 0:02:32]} 17. Rfc1 {[%emt 0:16:03]} Rd8 {[%emt 0:02:32]} 18. a5 {[%emt 0:02:10]} b5 {[%emt 0:04:29]} 19. axb6 {[%emt 0:04:12]} Nxb6 {[%emt 0:01:09]} 20. Qe2 {[%emt 0:12:33]} Rxd3 {[%emt 0:04:11]} 21. Nxb6 {[%emt 0:00:41]} Rd6 {[%emt 0:00:23]} 22. Nxc8 {[%emt 0:04:05]} Qxc8 {[%emt 0:00:11]} 23. Ra4 {[%emt 0:05:28]} Rdb6 {[%emt 0:01:01]} 24. Rc2 {[%emt 0:01:49]} Qb7 {[%emt 0:04:38]} 25. b4 {[%emt 0:04:49]} Qd5 {[%emt 0:05:25]} 26. c4 {[%emt 0:06:18]} Qd7 {[%emt 0:00:53]} 27. Rca2 {[%emt 0:00:35]} Rxb4 {[%emt 0:04:05]} 28. Rxb4 {[%emt 0:00:30]} Rxb4 {[%emt 0:00:18]} 29. Rxa6 {[%emt 0:00:08]} Rb1+ {[%emt 0:01:26]} 30. Kh2 {[%emt 0:00:09]} Qc7+ {[%emt 0:01:09]} 31. g3 {[%emt 0:00:14]} h6 {[%emt 0:00:33]} 32. Ra2 {[%emt 0:00:37]} Qb7 {[%emt 0:04:54]} 33. Qc2 {[%emt 0:04:19]} Bd4 {[%emt 0:09:10]} 34. Qd3 {[%emt 0:02:05]} e5 {[%emt 0:00:29]} 35. g4 {[%emt 0:03:13]} Rb3 {[%emt 0:01:24]} 36. Ra8+ {[%emt 0:00:15]} Kg7 {[%emt 0:01:11]} 0-1

[Event "European Amateur-ch U1700 2019"]
[Site "Rhodes"]
[Date "2019.04.12"]
[Round "7.2"]
[White "Kostov, Kiril"]
[Black "Stathatos, Alexandros"]
[Result "1-0"]
[ECO "C45"]
[WhiteElo "1625"]
[BlackElo "1184"]
[Annotator "NA"]
[PlyCount "89"]
[EventDate "2019.04.06"]
[EventType "swiss"]
[EventCountry "GRE"]
[SourceTitle "playchess.com"]
[Source "ChessBase"]
[SourceQuality "1"]
[TimeControl "40/5400+30:1800+30"]

1. e4 {[%emt 0:00:41]} e5 {[%emt 0:00:02]} 2. Nf3 {[%emt 0:01:24]} Nc6 {[%emt 0:00:07]} 3. d4 {[%emt 0:00:29]} exd4 {[%emt 0:00:08]} 4. Nxd4 {[%emt 0:00:52]} Nf6 {[%emt 0:00:16]} 5. Nxc6 {[%emt 0:01:00]} bxc6 {[%emt 0:00:11]} 6. Bd3 {[%emt 0:01:25]} Bc5 {[%emt 0:02:09]} 7. O-O {[%emt 0:01:19]} O-O {[%emt 0:00:09]} 8. Bg5 {[%emt 0:00:57]} Re8 {[%emt 0:02:38]} 9. Nc3 {[%emt 0:01:09]} Bb7 {[%emt 0:07:22]} 10. Re1 {[%emt 0:03:39]} Be7 {[%emt 0:05:29]} 11. e5 {[%emt 0:08:17]} Nd5 {[%emt 0:00:38]} 12. Bxe7 {[%emt 0:00:45]} Qxe7 {[%emt 0:00:15]} 13. Qh5 {[%emt 0:05:24]} h6 {[%emt 0:02:15]} 14. Qf5 {[%emt 0:03:07]} g6 {[%emt 0:00:48]} 15. Nxd5 {[%emt 0:00:49]} cxd5 {[%emt 0:01:47]} 16. Qh3 {[%emt 0:08:12]} Kh7 {[%emt 0:03:55]} 17. f4 {[%emt 0:04:27]} d6 {[%emt 0:05:48]} 18. e6 {[%emt 0:07:27]} Bc8 {[%emt 0:14:11]} 19. f5 {[%emt 0:02:42]} Qf6 {[%emt 0:04:03]} 20. exf7 {[%emt 0:01:11]} Rxe1+ {[%emt 0:01:24]} 21. Rxe1 {[%emt 0:00:18]} Bxf5 {[%emt 0:01:31]} 22. Bxf5 {[%emt 0:02:17]} gxf5 {[%emt 0:01:37]} 23. Rf1 {[%emt 0:01:23]} f4 {[%emt 0:04:41]} 24. Qd3+ {[%emt 0:01:16]} Kg7 {[%emt 0:01:43]} 25. Qxd5 {[%emt 0:00:29]} Rf8 {[%emt 0:00:25]} 26. g3 {[%emt 0:10:59]} Qxb2 {[%emt 0:03:42]} 27. Rxf4 {[%emt 0:00:59]} Qc1+ {[%emt 0:00:30]} 28. Rf1 {[%emt 0:01:51]} Qxc2 {[%emt 0:00:15]} 29. Qd4+ {[%emt 0:00:07]} Kh7 {[%emt 0:00:31]} 30. Qxa7 {[%emt 0:00:17]} Qc4 {[%emt 0:02:19]} 31. Qf2 {[%emt 0:00:33]} Qe6 {[%emt 0:00:55]} 32. Qc2+ {[%emt 0:00:28]} Kg7 {[%emt 0:00:13]} 33. Qb2+ {[%emt 0:02:08]} Kh7 {[%emt 0:00:51]} 34. Qc2+ {[%emt 0:00:13]} Kg7 {[%emt 0:00:13]} 35. Qb2+ {[%emt 0:00:26]} Kh7 {[%emt 0:00:09]} 36. Qf2 {[%emt 0:00:04]} Kg7 {[%emt 0:00:37]} 37. a4 {[%emt 0:00:16]} c5 {[%emt 0:01:34]} 38. a5 {[%emt 0:01:00]} Qe7 {[%emt 0:07:12]} 39. Qb2+ {[%emt 0:01:27]} Kh7 {[%emt 0:00:14]} 40. a6 {[%emt 0:00:00]} c4 {[%emt 0:00:00]} 41. Qc2+ {[%emt 0:02:02]} Kg7 {[%emt 0:01:22]} 42. Qxc4 {[%emt 0:00:18]} Qa7+ {[%emt 0:00:12]} 43. Rf2 {[%emt 0:00:38]} Rb8 {[%emt 0:04:56]} 44. Qg4+ {[%emt 0:01:47]} Kh7 {[%emt 0:00:19]} 45. Qd1 {[%emt 0:00:06]} 1-0

[Event "European Amateur-ch U1700 2019"]
[Site "Rhodes"]
[Date "2019.04.12"]
[Round "7.3"]
[White "Taddia, Davide"]
[Black "Meremyanina, Kseniya"]
[Result "0-1"]
[ECO "D09"]
[WhiteElo "1519"]
[BlackElo "1577"]
[Annotator "NA"]
[PlyCount "144"]
[EventDate "2019.04.06"]
[EventType "swiss"]
[EventCountry "GRE"]
[SourceTitle "playchess.com"]
[Source "ChessBase"]
[SourceQuality "1"]
[TimeControl "40/5400+30:1800+30"]

1. d4 {[%emt 0:00:00]} d5 {[%emt 0:00:00]} 2. c4 {[%emt 0:00:00]} e5 {[%emt 0:00:00]} 3. dxe5 {[%emt 0:00:32]} d4 {[%emt 0:00:00]} 4. Nf3 {[%emt 0:00:54]} Nc6 {[%emt 0:00:06]} 5. g3 {[%emt 0:00:26]} Be6 {[%emt 0:00:39]} 6. Nbd2 {[%emt 0:05:27]} Qd7 {[%emt 0:01:45]} 7. a3 {[%emt 0:00:16]} Nge7 {[%emt 0:01:21]} 8. Qa4 {[%emt 0:04:35]} Ng6 {[%emt 0:01:15]} 9. Bg2 {[%emt 0:01:22]} O-O-O {[%emt 0:04:46]} 10. Ng5 {[%emt 0:05:22]} Ngxe5 {[%emt 0:03:55]} 11. Nxe6 {[%emt 0:05:41]} Qxe6 {[%emt 0:03:21]} 12. O-O {[%emt 0:07:09]} Kb8 {[%emt 0:05:21]} 13. f4 {[%emt 0:04:40]} Ng4 {[%emt 0:01:52]} 14. Bxc6 {[%emt 0:02:50]} Qxc6 {[%emt 0:00:19]} 15. Qxc6 {[%emt 0:00:49]} bxc6 {[%emt 0:00:03]} 16. Nf3 {[%emt 0:02:13]} f6 {[%emt 0:03:05]} 17. h3 {[%emt 0:01:41]} Nh6 {[%emt 0:00:10]} 18. Ne1 {[%emt 0:04:42]} c5 {[%emt 0:00:52]} 19. Nd3 {[%emt 0:02:28]} a5 {[%emt 0:06:20]} 20. Bd2 {[%emt 0:03:49]} a4 {[%emt 0:00:03]} 21. b3 {[%emt 0:00:50]} axb3 {[%emt 0:00:13]} 22. Rfb1 {[%emt 0:00:13]} Bd6 {[%emt 0:01:08]} 23. Rxb3+ {[%emt 0:00:22]} Ka7 {[%emt 0:00:05]} 24. Rb5 {[%emt 0:00:46]} Rb8 {[%emt 0:01:11]} 25. a4 {[%emt 0:02:00]} Rxb5 {[%emt 0:00:36]} 26. axb5+ {[%emt 0:04:47]} Kb7 {[%emt 0:00:03]} 27. Ra2 {[%emt 0:04:23]} Ra8 {[%emt 0:00:36]} 28. Rb2 {[%emt 0:00:35]} Ra4 {[%emt 0:01:06]} 29. Rc2 {[%emt 0:02:19]} Nf5 {[%emt 0:02:42]} 30. Kf2 {[%emt 0:01:39]} Ne7 {[%emt 0:00:15]} 31. e3 {[%emt 0:00:17]} Ra3 {[%emt 0:00:26]} 32. Ke2 {[%emt 0:04:00]} Nf5 {[%emt 0:00:28]} 33. Bc1 {[%emt 0:04:19]} Nxg3+ {[%emt 0:00:35]} 34. Kd2 {[%emt 0:00:32]} Ne4+ {[%emt 0:00:23]} 35. Ke2 {[%emt 0:00:43]} Ng3+ {[%emt 0:00:53]} 36. Kd2 {[%emt 0:00:25]} dxe3+ {[%emt 0:00:32]} 37. Kxe3 {[%emt 0:00:45]} Bxf4+ {[%emt 0:00:21]} 38. Kxf4 {[%emt 0:00:32]} Rxd3 {[%emt 0:00:03]} 39. h4 {[%emt 0:04:12]} Rc3 {[%emt 0:01:56]} 40. Rxc3 {[%emt 0:00:00]} Ne2+ {[%emt 0:00:00]} 41. Kf5 {[%emt 0:04:26]} Nxc3 {[%emt 0:00:08]} 42. h5 {[%emt 0:01:23]} Ne2 {[%emt 0:01:34]} 43. Be3 {[%emt 0:04:05]} Nd4+ {[%emt 0:03:42]} 44. Kg4 {[%emt 0:01:16]} c6 {[%emt 0:00:39]} 45. bxc6+ {[%emt 0:00:22]} Kxc6 {[%emt 0:00:11]} 46. Kf4 {[%emt 0:01:14]} Kd6 {[%emt 0:00:30]} 47. Bd2 {[%emt 0:02:48]} g6 {[%emt 0:00:42]} 48. hxg6 {[%emt 0:03:16]} hxg6 {[%emt 0:00:02]} 49. Ba5 {[%emt 0:01:16]} Ne6+ {[%emt 0:01:38]} 50. Ke3 {[%emt 0:02:14]} f5 {[%emt 0:00:48]} 51. Bc3 {[%emt 0:00:56]} g5 {[%emt 0:01:03]} 52. Bf6 {[%emt 0:00:33]} g4 {[%emt 0:00:17]} 53. Kf2 {[%emt 0:04:19]} Nd4 {[%emt 0:00:19]} 54. Kg3 {[%emt 0:01:18]} Ke6 {[%emt 0:00:35]} 55. Bg7 {[%emt 0:01:48]} Kf7 {[%emt 0:03:11]} 56. Be5 {[%emt 0:01:07]} Ke6 {[%emt 0:00:14]} 57. Bb8 {[%emt 0:00:26]} Nb3 {[%emt 0:01:32]} 58. Kf4 {[%emt 0:00:47]} Nd2 {[%emt 0:01:18]} 59. Ba7 {[%emt 0:02:13]} Nxc4 {[%emt 0:02:45]} 60. Bxc5 {[%emt 0:00:12]} Kf6 {[%emt 0:00:17]} 61. Bd4+ {[%emt 0:00:31]} Kg6 {[%emt 0:00:11]} 62. Bg1 {[%emt 0:00:41]} Nd6 {[%emt 0:00:39]} 63. Bc5 {[%emt 0:01:12]} Ne4 {[%emt 0:00:16]} 64. Bg1 {[%emt 0:00:38]} Ng5 {[%emt 0:00:17]} 65. Bb6 {[%emt 0:01:26]} Nh3+ {[%emt 0:00:29]} 66. Kg3 {[%emt 0:00:27]} Kh5 {[%emt 0:01:02]} 67. Bc7 {[%emt 0:00:11]} f4+ {[%emt 0:00:22]} 68. Kh2 {[%emt 0:01:52]} Kg5 {[%emt 0:00:12]} 69. Bd8+ {[%emt 0:01:22]} Kf5 {[%emt 0:00:04]} 70. Bh4 {[%emt 0:00:07]} Ke4 {[%emt 0:00:10]} 71. Bg3 {[%emt 0:01:41]} fxg3+ {[%emt 0:00:23]} 72. Kxg3 {[%emt 0:00:10]} Kd4 {[%emt 0:04:01]} 0-1